fUSD/lending_fUSD_20250215
["ID","MTS","AMOUNT","RATE_DAILY","PERIOD"]
[353210219,1739652638003,-500.0,0.00010958,2]
[353210221,1739652638013,-500.0,0.00010958,2]
[353210223,1739652638023,-500.0,0.00010958,2]
[353210225,1739652638035,-500.0,0.00010958,2]
[353210227,1739652638045,-500.0,0.00010958,2]
[353210229,1739652638054,-1047.2,0.00010958,2]
[353210231,1739652638065,-500.0,0.00010958,2]
[353210233,1739652638075,-392.35558385,0.00010958,2]
[353210235,1739652638084,-500.0,0.00010958,2]
[353210237,1739652638094,-735.34,0.00010958,2]
[353210239,1739652638104,-1349.8,0.00010958,2]
[353210241,1739652638114,-500.0,0.00010958,2]
[353210243,1739652638123,-500.0,0.00010958,2]
[353210245,1739652638133,-500.0,0.00010958,2]
[353210248,1739652638143,-500.0,0.00010958,2]
[353210250,1739652638152,-500.0,0.00010958,2]
[353210252,1739652638163,-500.0,0.00010958,2]
[353210254,1739652638172,-500.0,0.00010958,2]
[353210255,1739652638182,-595.16,0.00010958,2]
[353210257,1739652638191,-741.62,0.00010958,2]
[353210259,1739652638201,-500.0,0.00010958,2]
[353210261,1739652638209,-500.0,0.00010958,2]
[353210263,1739652638219,-500.0,0.00010958,2]
[353210265,1739652638228,-500.0,0.00010958,2]
[353210267,1739652638237,-500.0,0.00010958,2]
[353210269,1739652638248,-500.0,0.00010958,2]
[353210271,1739652638257,-500.0,0.00010958,2]
[353210273,1739652638266,-512.51302801,0.00010958,2]
[353210275,1739652638275,-500.0,0.00010958,2]
[353210277,1739652638286,-500.0,0.00010958,2]
[353210279,1739652638295,-754.75,0.00010958,2]
[353210281,1739652638304,-500.0,0.00010958,2]
[353210283,1739652638313,-1004.18,0.00010958,2]
[353210285,1739652638323,-500.0,0.00010958,2]
[353210287,1739652638333,-500.0,0.00010958,2]
[353210289,1739652638342,-500.0,0.00010958,2]
[353210291,1739652638351,-572.405992,0.00010958,2]
[353210293,1739652638361,-500.0,0.00010958,2]
[353210295,1739652638370,-500.0,0.00010958,2]
[353210297,1739652638380,-500.0,0.00010958,2]
[353210299,1739652638389,-500.0,0.00010958,2]
[353210301,1739652638399,-183.60028119,0.00010958,2]
[353210303,1739652638409,-150.0,0.00010979,2]
[353210305,1739652638419,-200.0,0.00011,2]
[353210307,1739652638428,-619.0,0.00011,2]
[353210309,1739652638437,-250.0,0.00011019,2]
[353210311,1739652638446,-569.8,0.00011037,2]
[353210313,1739652638455,-500.0,0.00011037,2]
[353210315,1739652638464,-500.0,0.00011037,2]
[353210317,1739652638473,-686.37,0.00011037,2]
[353210319,1739652638482,-500.0,0.00011037,2]
[353210321,1739652638492,-500.0,0.00011037,2]
[353210322,1739652638501,-544.4,0.00011037,2]
[353210325,1739652638510,-500.0,0.00011037,2]
[353210327,1739652638520,-939.8,0.00011037,2]
[353210329,1739652638529,-500.0,0.00011037,2]
[353210331,1739652638538,-792.8,0.00011037,2]
[353210333,1739652638548,-500.0,0.00011037,2]
[353210334,1739652638558,-862.35,0.00011037,2]
[353210337,1739652638568,-519.34,0.00011037,2]
[353210339,1739652638577,-500.0,0.00011037,2]
[353210341,1739652638587,-553.96638727,0.00011037,2]
[353210343,1739652638596,-842.62,0.00011037,2]
[353210345,1739652638605,-500.0,0.00011037,2]
[353210347,1739652638615,-500.0,0.00011037,2]
[353210349,1739652638625,-500.0,0.00011037,2]
[353210351,1739652638634,-503.14,0.00011037,2]
[353210353,1739652638643,-500.0,0.00011037,2]
[353210355,1739652638652,-500.0,0.00011037,2]
[353210357,1739652638663,-500.0,0.00011037,2]
[353210358,1739652638672,-500.0,0.00011037,2]
[353210361,1739652638681,-739.28,0.00011037,2]
[353210363,1739652638691,-500.0,0.00011037,2]
[353210365,1739652638700,-500.0,0.00011037,2]
[353210366,1739652638710,-500.0,0.00011037,2]
[353210368,1739652638720,-475.76955501,0.00011037,2]
[353210370,1739652638729,-1071.73,0.00011037,2]
[353210372,1739652638738,-850.58,0.00011037,2]
[353210374,1739652638748,-500.0,0.00011037,2]
[353210376,1739652638757,-562.62,0.00011037,2]
[353210378,1739652638766,-500.0,0.00011037,2]
[353210380,1739652638775,-500.0,0.00011037,2]
[353210382,1739652638784,-500.0,0.00011037,2]
[353210384,1739652638794,-924.21,0.00011037,2]
[353210386,1739652638803,-500.0,0.00011037,2]
[353210388,1739652638812,-500.0,0.00011037,2]
[353210390,1739652638825,-500.0,0.00011037,2]
[353210392,1739652638848,-500.0,0.00011037,2]
[353210394,1739652638857,-500.0,0.00011037,2]
[353210396,1739652638866,-500.0,0.00011037,2]
[353210398,1739652638876,-500.0,0.00011037,2]
[353210400,1739652638886,-500.0,0.00011037,2]
[353210403,1739652638895,-500.0,0.00011037,2]
[353210405,1739652638905,-1465.32,0.00011037,2]
[353210406,1739652638916,-500.0,0.00011037,2]
[353210421,1739652639047,-500.0,0.00011037,2]
[353210423,1739652639056,-500.0,0.00011037,2]
[353210425,1739652639066,-819.29,0.00011037,2]
[353210427,1739652639074,-500.0,0.00011037,2]
[353210429,1739652639083,-873.1,0.00011037,2]
[353210431,1739652639093,-500.0,0.00011037,2]
[353210433,1739652639103,-500.0,0.00011037,2]
[353210435,1739652639113,-769.27,0.00011037,2]
[353210437,1739652639123,-833.47,0.00011037,2]
[353210439,1739652639134,-500.0,0.00011037,2]
[353210441,1739652639143,-500.0,0.00011037,2]
[353210443,1739652639152,-500.0,0.00011037,2]
[353210445,1739652639162,-500.0,0.00011037,2]
[353210447,1739652639172,-500.0,0.00011037,2]
[353210449,1739652639182,-1016.92,0.00011037,2]
[353210451,1739652639191,-829.2,0.00011037,2]
[353210453,1739652639201,-500.0,0.00011037,2]
[353210455,1739652639210,-500.0,0.00011037,2]
[353210457,1739652639219,-677.27,0.00011037,2]
[353210459,1739652639228,-542.64,0.00011037,2]
[353210461,1739652639237,-500.0,0.00011037,2]
[353210463,1739652639247,-500.0,0.00011037,2]
[353210465,1739652639259,-500.0,0.00011037,2]
[353210467,1739652639269,-917.35,0.00011037,2]
[353210469,1739652639277,-921.99,0.00011037,2]
[353210471,1739652639286,-500.0,0.00011037,2]
[353210473,1739652639296,-538.87,0.00011037,2]
[353210475,1739652639305,-904.04,0.00011037,2]
[353210477,1739652639314,-828.29,0.00011037,2]
[353210478,1739652639323,-500.0,0.00011037,2]
[353210479,1739652639332,-500.0,0.00011037,2]
[353210480,1739652639341,-500.0,0.00011037,2]
[353210481,1739652639349,-781.02,0.00011037,2]
[353210482,1739652639358,-1374.41,0.00011037,2]
[353210483,1739652639367,-524.57,0.00011037,2]
[353210484,1739652639376,-857.32,0.00011037,2]
[353210485,1739652639385,-652.82,0.00011037,2]
[353210486,1739652639394,-751.93,0.00011037,2]
[353210487,1739652639403,-1675.91,0.00011037,2]
[353210488,1739652639413,-500.0,0.00011037,2]
[353210490,1739652639423,-621.35,0.00011037,2]
[353210492,1739652639433,-1331.95,0.00011037,2]
[353210494,1739652639443,-500.0,0.00011037,2]
[353210496,1739652639452,-71.41653057,0.00011037,2]
[353210501,1739652639483,-1318.01346943,0.00011037,2]
[353210503,1739652639492,-802.86,0.00011037,2]
[353210504,1739652639502,-775.77,0.00011037,2]
[353210507,1739652639511,-730.07,0.00011037,2]
[353210509,1739652639521,-500.0,0.00011037,2]
[353210510,1739652639530,-500.0,0.00011037,2]
[353210512,1739652639540,-500.0,0.00011037,2]
[353210514,1739652639549,-608.84,0.00011037,2]
[353210516,1739652639558,-954.73,0.00011037,2]
[353210518,1739652639568,-500.0,0.00011037,2]
[353210520,1739652639577,-1030.51,0.00011037,2]
[353210522,1739652639586,-500.0,0.00011037,2]
[353210524,1739652639595,-500.0,0.00011037,2]
[353210526,1739652639605,-326.25916896,0.00011037,2]
[353210531,1739652639638,-500.0,0.00010958,2]
[353210533,1739652639647,-173.74083104,0.00011037,2]
[353210535,1739652639658,-611.59680884,0.00011037,2]
[353210537,1739652639671,-735.05319116,0.00011037,2]
[353210539,1739652639680,-500.0,0.00011037,2]
[353210541,1739652639690,-500.0,0.00011037,2]
[353210543,1739652639699,-500.0,0.00011037,2]
[353210545,1739652639709,-492.30880494,0.00011037,2]
[353210547,1739652639721,-421.17119506,0.00011037,2]
[353210549,1739652639730,-500.0,0.00011037,2]
[353210551,1739652639740,-500.0,0.00011037,2]
[353210553,1739652639749,-605.41,0.00011037,2]
[353210555,1739652639758,-1049.61,0.00011037,2]
[353210557,1739652639767,-500.0,0.00011037,2]
[353210559,1739652639778,-1345.6,0.00011037,2]
[353210561,1739652639787,-500.0,0.00011037,2]
[353210563,1739652639796,-500.0,0.00011038,2]
[353210565,1739652639806,-500.0,0.00011038,2]
[353210568,1739652639815,-500.0,0.00011038,2]
[353210570,1739652639824,-500.0,0.00011038,2]
[353210572,1739652639833,-500.0,0.00011038,2]
[353210574,1739652639842,-500.0,0.00011038,2]
[353210576,1739652639851,-500.0,0.00011038,2]
[353210578,1739652639860,-500.0,0.00011038,2]
[353210580,1739652639870,-500.0,0.00011038,2]
[353210582,1739652639879,-500.0,0.00011038,2]
[353210584,1739652639888,-500.0,0.00011038,2]
[353210586,1739652639898,-500.0,0.00011038,2]
[353210588,1739652639907,-500.0,0.00011038,2]
[353210591,1739652639916,-249.15446033,0.00011038,2]
[353210594,1739652639926,-500.0,0.00011038,2]
[353210596,1739652639935,-500.0,0.00011038,2]
[353210598,1739652639945,-502.36187848,0.00011038,2]
[353210600,1739652639954,-300.0,0.00011038,2]
[353210602,1739652639963,-262.09516629,0.00011038,2]
[353210605,1739652639972,-500.0,0.00011038,2]
[353210607,1739652639981,-500.0,0.00011038,2]
[353210608,1739652639990,-500.0,0.00011038,2]
[353210610,1739652640000,-500.0,0.00011038,2]
[353210613,1739652640010,-500.0,0.00011038,2]
[353210614,1739652640020,-500.0,0.00011038,2]
[353210616,1739652640029,-500.0,0.00011038,2]
[353210618,1739652640038,-500.0,0.00011038,2]
[353210619,1739652640048,-500.0,0.00011038,2]
[353210620,1739652640057,-500.0,0.00011038,2]
[353210621,1739652640066,-500.0,0.00011038,2]
[353210622,1739652640076,-500.0,0.00011038,2]
[353210623,1739652640085,-517.72812565,0.00011038,2]
[353210624,1739652640094,-500.0,0.00011038,2]
[353210625,1739652640103,-501.71375177,0.00011038,2]
[353210626,1739652640113,-501.19140794,0.00011038,2]
[353210627,1739652640122,-500.0,0.00011038,2]
[353210628,1739652640131,-287.26715094,0.00011038,2]
[353210629,1739652640141,-500.0,0.00011038,2]
[353210630,1739652640150,-305.55975436,0.00011038,2]
[353210631,1739652640160,-500.0,0.00011038,2]
[353210632,1739652640169,-501.4361653,0.00011038,2]
[353210633,1739652640179,-501.25075891,0.00011038,2]
[353210634,1739652640188,-500.0,0.00011038,2]
[353210635,1739652640197,-500.0,0.00011038,2]
[353210636,1739652640206,-1010.55,0.00011038,2]
[353210637,1739652640216,-727.0,0.00011038,2]
[353210638,1739652640225,-500.0,0.00011038,2]
[353210639,1739652640234,-500.0,0.00011038,2]
[353210640,1739652640244,-549.68,0.00011038,2]
[353210641,1739652640256,-500.0,0.00011038,2]
[353210642,1739652640266,-500.0,0.00011038,2]
[353210643,1739652640276,-500.0,0.00011038,2]
[353210644,1739652640286,-500.0,0.00011038,2]
[353210645,1739652640297,-882.76,0.00011038,2]
[353210646,1739652640306,-500.0,0.00011038,2]
[353210647,1739652640315,-620.2,0.00011038,2]
[353210648,1739652640325,-500.0,0.00011038,2]
[353210649,1739652640337,-535.44786384,0.00011038,2]
[353210650,1739652640351,-725.64,0.00011038,2]
[353210651,1739652640362,-732.7,0.00011038,2]
[353210652,1739652640371,-548.12,0.00011038,2]
[353210653,1739652640380,-500.0,0.00011038,2]
[353210654,1739652640390,-675.25,0.00011038,2]
[353210655,1739652640399,-926.22,0.00011038,2]
[353210656,1739652640409,-527.19,0.00011038,2]
[353210657,1739652640418,-500.0,0.00011038,2]
[353210658,1739652640428,-645.5,0.00011038,2]
[353210659,1739652640438,-500.0,0.00011038,2]
[353210660,1739652640447,-500.0,0.00011038,2]
[353210661,1739652640457,-500.0,0.00011038,2]
[353210662,1739652640466,-1021.16,0.00011038,2]
[353210663,1739652640475,-666.54,0.00011038,2]
[353210664,1739652640485,-853.12,0.00011038,2]
[353210665,1739652640494,-766.47,0.00011038,2]
[353210666,1739652640504,-644.4,0.00011038,2]
[353210667,1739652640513,-500.0,0.00011038,2]
[353210668,1739652640522,-1028.62,0.00011038,2]
[353210669,1739652640531,-665.73,0.00011038,2]
[353210670,1739652640542,-1347.31,0.00011038,2]
[353210671,1739652640551,-500.0,0.00011038,2]
[353210673,1739652640561,-1173.21,0.00011038,2]
[353210675,1739652640570,-500.0,0.00011038,2]
[353210677,1739652640579,-1454.41,0.00011038,2]
[353210678,1739652640588,-636.82,0.00011038,2]
[353210679,1739652640597,-500.0,0.00011038,2]
[353210681,1739652640606,-1260.47,0.00011038,2]
[353210682,1739652640616,-500.0,0.00011038,2]
[353210684,1739652640625,-1100.01,0.00011038,2]
[353210686,1739652640636,-500.0,0.00011038,2]
[353210688,1739652640646,-500.0,0.00011038,2]
[353210690,1739652640655,-1763.3,0.00011038,2]
[353210691,1739652640665,-500.0,0.00011038,2]
[353210693,1739652640674,-500.0,0.00011038,2]
[353210695,1739652640684,-500.0,0.00011038,2]
[353210697,1739652640693,-372.94598075,0.00011038,2]
[353210699,1739652640702,-1275.35,0.00011038,2]
[353210701,1739652640711,-500.0,0.00011038,2]
[353210703,1739652640720,-500.0,0.00011038,2]
[353210705,1739652640729,-1707.39,0.00011038,2]
[353210707,1739652640738,-500.0,0.00011038,2]
[353210709,1739652640747,-607.25,0.00011038,2]
[353210711,1739652640756,-1778.98,0.00011038,2]
[353210713,1739652640765,-1201.55,0.00011038,2]
[353210715,1739652640775,-831.06,0.00011038,2]
[353210717,1739652640784,-4570.66,0.00011038,2]
[353210719,1739652640793,-200.82135699,0.00011038,2]
[353210721,1739652640802,-500.0,0.00011038,2]
[353210723,1739652640811,-1415.22,0.00011038,2]
[353210725,1739652640820,-500.0,0.00011038,2]
[353210727,1739652640829,-1162.24,0.00011038,2]
[353210729,1739652640838,-798.66,0.00011038,2]
[353210731,1739652640848,-500.0,0.00011038,2]
[353210733,1739652640857,-500.0,0.00011038,2]
[353210735,1739652640866,-500.0,0.00011038,2]
[353210736,1739652640875,-2017.92,0.00011038,2]
[353210737,1739652640885,-500.0,0.00011038,2]
[353210738,1739652640894,-525.73,0.00011038,2]
[353210739,1739652640903,-737.05,0.00011038,2]
[353210740,1739652640913,-1604.8,0.00011038,2]
[353210741,1739652640922,-1401.97,0.00011038,2]
[353210742,1739652640931,-1000.0,0.00011038,2]
[353210743,1739652640941,-1536.78,0.00011038,2]
[353210744,1739652640950,-500.0,0.00011038,2]
[353210745,1739652640959,-1844.63,0.00011038,2]
[353210746,1739652640968,-2323.74,0.00011038,2]
[353210747,1739652640977,-500.0,0.00011038,2]
[353210748,1739652640986,-503.87,0.00011038,2]
[353210749,1739652640996,-445.24944524,0.00011038,2]
[353210750,1739652641124,-500.82356971,0.00011039,2]
[353210751,1739652641134,-500.78219175,0.00011039,2]
[353210752,1739652641143,-554.45,0.00011039,2]
[353210753,1739652641153,-500.0,0.00011039,2]
[353210754,1739652641163,-500.0,0.00011039,2]
[353210755,1739652641172,-500.0,0.00011039,2]
[353210756,1739652641181,-502.13547077,0.00011039,2]
[353210757,1739652641190,-500.0,0.00011039,2]
[353210758,1739652641201,-500.0,0.00011039,2]
[353210759,1739652641210,-500.0,0.00011039,2]
[353210760,1739652641219,-500.0,0.00011039,2]
[353210761,1739652641228,-500.0,0.00011039,2]
[353210762,1739652641237,-500.0,0.00011039,2]
[353210763,1739652641249,-500.60435142,0.00011039,2]
[353210764,1739652641258,-500.0,0.00011039,2]
[353210765,1739652641267,-500.0,0.00011039,2]
[353210766,1739652641277,-500.0,0.00011039,2]
[353210767,1739652641286,-328.63491196,0.00011039,2]
[353210768,1739652641295,-500.0,0.00011039,2]
[353210769,1739652641304,-500.0,0.00011039,2]
[353210770,1739652641314,-500.0,0.00011039,2]
[353210771,1739652641323,-500.0,0.00011039,2]
[353210772,1739652641332,-500.0,0.00011039,2]
[353210773,1739652641342,-500.0,0.00011039,2]
[353210774,1739652641356,-500.92195474,0.00011039,2]
[353210775,1739652641366,-500.0,0.00011039,2]
[353210776,1739652641376,-500.0,0.00011039,2]
[353210777,1739652641385,-542.68,0.00011039,2]
[353210778,1739652641395,-500.0,0.00011039,2]
[353210779,1739652641404,-500.0,0.00011039,2]
[353210780,1739652641415,-500.0,0.00011039,2]
[353210781,1739652641425,-500.0,0.00011039,2]
[353210782,1739652641435,-500.0,0.00011039,2]
[353210783,1739652641445,-500.0,0.00011039,2]
[353210784,1739652641455,-500.0,0.00011039,2]
[353210785,1739652641464,-500.0,0.00011039,2]
[353210786,1739652641474,-502.13438114,0.00011039,2]
[353210787,1739652641483,-500.0,0.00011039,2]
[353210788,1739652641492,-500.0,0.00011039,2]
[353210789,1739652641502,-500.0,0.00011039,2]
[353210790,1739652641511,-500.0,0.00011039,2]
[353210791,1739652641520,-500.0,0.00011039,2]
[353210792,1739652641530,-500.0,0.00011039,2]
[353210793,1739652641539,-500.0,0.00011039,2]
[353210794,1739652641548,-565.4,0.00011039,2]
[353210795,1739652641558,-501.15305456,0.00011039,2]
[353210796,1739652641567,-500.0,0.00011039,2]
[353210797,1739652641577,-500.0,0.00011039,2]
[353210798,1739652641587,-500.0,0.00011039,2]
[353210799,1739652641597,-500.0,0.00011039,2]
[353210800,1739652641607,-500.0,0.00011039,2]
[353210801,1739652641616,-501.16319771,0.00011039,2]
[353210802,1739652641627,-501.07531017,0.00011039,2]
[353210803,1739652641636,-500.0,0.00011039,2]
[353210804,1739652641646,-500.0,0.00011039,2]
[353210805,1739652641655,-500.0,0.00011039,2]
[353210806,1739652641666,-500.0,0.00011039,2]
[353210807,1739652641676,-500.0,0.00011039,2]
[353210808,1739652641685,-500.0,0.00011039,2]
[353210809,1739652641695,-636.47,0.00011039,2]
[353210810,1739652641704,-500.0,0.00011039,2]
[353210811,1739652641713,-500.0,0.00011039,2]
[353210812,1739652641723,-500.0,0.00011039,2]
[353210813,1739652641732,-500.0,0.00011039,2]
[353210814,1739652641741,-500.0,0.00011039,2]
[353210815,1739652641750,-500.0,0.00011039,2]
[353210816,1739652641760,-500.0,0.00011039,2]
[353210817,1739652641769,-565.95,0.00011039,2]
[353210818,1739652641779,-500.0,0.00011039,2]
[353210819,1739652641789,-1015.15,0.00011039,2]
[353210820,1739652641798,-300.0,0.00011039,2]
[353210821,1739652641808,-500.0,0.00011039,2]
[353210822,1739652641817,-257668.20240785,0.0001104,3]
[353210840,1739652643397,-500.0,0.00010958,2]
[353210841,1739652643407,-500.0,0.00010958,2]
[353210842,1739652643418,-161.53693663,0.0001104,3]
[353210843,1739652643428,-265.47665951,0.0001104,2]
[353210844,1739652643437,-12709.61172463,0.0001104,3]
[353210845,1739652643449,-4862.95094821,0.0001104,3]
[353210848,1739652643741,-500.0,0.00011037,2]
[353210849,1739652643750,-0.79698214,0.0001104,3]
[353210850,1739652643762,-537.42882802,0.0001104,3]
[353210851,1739652644673,-190.07,0.00010378,2]
[353210852,1739652644682,-1062.79,0.00011037,2]
[353210853,1739652644691,-5544.13996365,0.0001104,3]
[353210854,1739652644740,-333.1,0.0001104,3]
[353210855,1739652644760,-10707.7498434,0.0001104,3]
[353210865,1739652646058,-219.32717537,0.00010958,2]
[353210866,1739652646068,-521.72,0.00010958,2]
[353210867,1739652646078,-265.70891573,0.0001104,3]
[353210884,1739653160369,947.9,8.219e-05,2]
[353210887,1739653832302,-390.0516,8.836e-05,2]
[353210888,1739653832312,-200.0,8.877e-05,2]
[353210889,1739653832321,-500.0,9.397e-05,2]
[353210890,1739653832331,-1000.0,9.447e-05,2]
[353210891,1739653832340,-793.72,9.511e-05,2]
[353210892,1739653832350,-300.0,9.559e-05,2]
[353210893,1739653832359,-2916.4684172,9.56e-05,2]
[353210894,1739653832371,-522.3652808,9.56e-05,2]
[353210895,1739653832382,-1244.15535,9.56e-05,2]
[353210896,1739653832408,-1301.94,9.56e-05,2]
[353210932,1739653838076,-1949.5,9.56e-05,2]
[353210933,1739653838133,-636.90273956,9.56e-05,2]
[353210934,1739653838146,-914.48785357,9.56e-05,2]
[353210935,1739653838156,-1267.43912775,9.56e-05,2]
[353210936,1739653838198,-5852.47830461,9.56e-05,2]
[353210937,1739653838210,-318.20514,9.56e-05,2]
[353210938,1739653838221,-6976.05778651,9.56e-05,2]
[353210939,1739653838230,-1380.8,9.592e-05,2]
[353210940,1739653838239,-150.0,9.719e-05,2]
[353210941,1739653838248,-200.0,9.719e-05,2]
[353210942,1739653838258,-150.0,9.719e-05,2]
[353210943,1739653838267,-150.0,9.719e-05,2]
[353210944,1739653838276,-200.0,9.719e-05,2]
[353210945,1739653838285,-2000.0,9.91e-05,2]
[353210946,1739653838294,-150.0,9.912e-05,2]
[353210947,1739653838303,-150.0,9.912e-05,2]
[353210948,1739653838312,-150.0,9.912e-05,2]
[353210949,1739653838322,-150.0,9.912e-05,2]
[353210950,1739653838331,-160.3,0.00010036,2]
[353210951,1739653838340,-1677.24118258,0.00010037,2]
[353210952,1739653838350,-200.0,0.00010048,2]
[353210953,1739653838359,-150.0,0.0001005,2]
[353210954,1739653838368,-500.0,0.00010058,2]
[353210956,1739653838378,-504.28,0.00010137,2]
[353210958,1739653838387,-214.5,0.00010148,2]
[353210960,1739653838396,-1500.0,0.00010148,2]
[353210961,1739653838405,-150.0,0.00010188,2]
[353210963,1739653838415,-150.0,0.00010325,2]
[353210965,1739653838424,-166.75,0.00010457,2]
[353210967,1739653838433,-150.0,0.00010463,2]
[353210970,1739653838442,-150.0,0.00010463,2]
[353210971,1739653838451,-947.9,0.00010475,2]
[353210974,1739653838461,-420.0,0.00010515,2]
[353210976,1739653838470,-150.0,0.00010601,2]
[353210978,1739653838479,-1000.0,0.00010628,2]
[353210979,1739653838488,-302.72,0.00010678,2]
[353210981,1739653838498,-150.0,0.000107,2]
[353210983,1739653838507,-549.45103091,0.000107,2]
[353210987,1739653838527,-244.26896909,0.000107,2]
[353210989,1739653838536,-82.18103091,0.00010738,2]
[353210991,1739653838548,-67.81896909,0.00010738,2]
[353210993,1739653838558,-150.0,0.00010783,2]
[353210995,1739653838568,-150.0,0.00010783,2]
[353210998,1739653838587,-150.0,0.00010783,2]
[353211000,1739653838597,-1677.24118258,0.00010858,2]
[353211002,1739653838607,-150.0,0.00010876,2]
[353211004,1739653838616,-527.46483508,0.00010958,2]
[353211006,1739653838626,-501.31841513,0.00010958,2]
[353211008,1739653838635,-500.0,0.00010958,2]
[353211010,1739653838648,-638.72155357,0.00010958,2]
[353211012,1739653838658,-422.06867259,0.00010958,2]
[353211014,1739653838667,-500.0,0.00010958,2]
[353211016,1739653838676,-124.36637196,0.00010958,2]
[353211022,1739653838733,-260.74,0.00010958,2]
[353211045,1739653838956,-114.89362804,0.00010958,2]
[353211047,1739653838965,-500.0,0.00010958,2]
[353211049,1739653838974,-240.74162542,0.00010958,2]
[353211051,1739653838983,-512.14562174,0.00010958,2]
[353211053,1739653838993,-500.0,0.00010958,2]
[353211055,1739653839002,-500.0,0.00010958,2]
[353211057,1739653839012,-369.33359441,0.00010958,2]
[353211205,1739653840243,-130.66640559,0.00010958,2]
[353211208,1739653840252,-500.0,0.00010958,2]
[353211210,1739653840261,-411.71078177,0.00010958,2]
[353211213,1739653840271,-194.73879696,0.00010958,2]
[353211216,1739653840280,-109.88401568,0.00010958,2]
[353211221,1739653840292,-390.11598432,0.00010958,2]
[353211224,1739653840301,-500.0,0.00010958,2]
[353211227,1739653840310,-578.94428634,0.00010958,2]
[353211229,1739653840320,-500.0,0.00010958,2]
[353211231,1739653840329,-244.75334455,0.00010958,2]
[353211232,1739653840340,-255.24665545,0.00010958,2]
[353211233,1739653840349,-500.0,0.00010958,2]
[353211234,1739653840358,-500.0,0.00010958,2]
[353211235,1739653840368,-500.0,0.00010958,2]
[353211236,1739653840377,-171.51593715,0.00010958,2]
[353211237,1739653840388,-328.48406285,0.00010958,2]
[353211238,1739653840397,-104.45865438,0.00010958,2]
[353211239,1739653840432,-395.54134562,0.00010958,2]
[353211240,1739653840441,-500.0,0.00010958,2]
[353211241,1739653840450,-500.0,0.00010958,2]
[353211243,1739653840460,-500.0,0.00010958,2]
[353211245,1739653840469,-500.0,0.00010958,2]
[353211247,1739653840479,-500.0,0.00010958,2]
[353211249,1739653840488,-500.0,0.00010958,2]
[353211251,1739653840497,-500.0,0.00010958,2]
[353211253,1739653840506,-500.0,0.00010958,2]
[353211255,1739653840515,-500.0,0.00010958,2]
[353211257,1739653840524,-500.0,0.00010958,2]
[353211259,1739653840534,-500.0,0.00010958,2]
[353211261,1739653840543,-500.0,0.00010958,2]
[353211263,1739653840553,-500.0,0.00010958,2]
[353211265,1739653840562,-500.0,0.00010958,2]
[353211267,1739653840571,-500.0,0.00010958,2]
[353211268,1739653840580,-467.32239501,0.00010958,2]
[353211271,1739653840592,-32.67760499,0.00010958,2]
[353211273,1739653840601,-500.0,0.00010958,2]
[353211275,1739653840610,-500.0,0.00010958,2]
[353211277,1739653840619,-2.00119501,0.00010958,2]
[353211279,1739653840630,-497.99880499,0.00010958,2]
[353211281,1739653840640,-500.0,0.00010958,2]
[353211283,1739653840650,-500.0,0.00010958,2]